{"text_format":"1","workbook":"xlsx","n_sheets":1,"sheets":["12"],"not_rendered":{"charts":0,"images":0,"macros":1,"external_links":1,"defined_names":12,"comments":0,"pivot_tables":0},"unopened":[],"bounds":{"document_bytes":16777216,"sheet_cells":100000,"rows_first":2000,"rows_last":500,"rows_between":2000,"halvings":0,"cell_chars":16384,"cell_head_chars":4096},"cells_cut":0,"cells_raw":0,"read":"whole","date_system":"1900"}

{"sheet":"12","index":0,"n_rows":70,"n_cols":16,"rows_kept":70,"cut":false,"hidden":false,"merged":[]}
[null,null,null,null,null,null,null,null,"вввввв",null,{"$f":"MID(CELL(\"filename\",B1),FIND(\"]\",CELL(\"filename\",B1))+1,65535)","v":"12"},null,null,null,null,"Баграмян И.Х."]
[null,null,null,null,null,"вввв",null,null,null,null,null,null,null,null,null,"Будённый С.М."]
["ааа",null,null,null,null,"аааааааааа",null,null,null,null,null,null,null,null,null,"Жуков Г.К."]
["ааа",null,null,null,null,null,null,null,"ввввв",null,null,null,null,null,null,"Рокоссовский К.К."]
["ааа",null,null,null,null,null,null,null,"ввввв",null,null,null,null,null,null,"Сергеев И.Д."]
[null,null,null,{"$f":"\"ОТЧЕТ №03-514-\" &K1","v":"ОТЧЕТ №03-514-12"},null,null,null,null,null,null,null,{"$f":"L14+#REF!+#REF!+#REF!+#REF!+#REF!+#REF!+#REF!+#REF!+#REF!+#REF!+#REF!+#REF!+#REF!+#REF!+#REF!+#REF!+#REF!+#REF!+#REF!+#REF!+#REF!+#REF!+#REF!+#REF!+#REF!+#REF!+#REF!+#REF!+#REF!","v":{"$error":"#REF!"}},null,null,null,"Тимошенко С.К."]
[null,null,null,"АААААААААААААААААААААААА",null,null,null,null,null,null,null,null,null,null,null,"Тухачевский М.Н."]
[null,null,null,"АААААААААААААААААААААААА"]
[null,null,null,"АААААААААААААААААААААААА"]
[null,null,null,"БББББББББББББББББББББББББББББББББ"]
[null,null,null,"ВВВВВВВВВВВВВВВВВВВВВВВВВВВВВВВВВВВВВВВВВ"]
[null,null,null,"ааааа"]
[null,null,null,"Март 2020 г."]
["п/п","Наименование ресурса","Ед.\nизм.","Расход\nпо норме","Фактич.\nколичество","Эконо-\nмия (+),\nперерас-\nход (-)","Даваль-\nческие\nмате-\nриалы","Собствен-ная закупка","Код материала ","МОЛ","Цена",{"$f":"SUM(L16:L2741)","v":73666.155263507841}]
[1,2,3,4,5,6,7,8,9,10]
[1,"Грунтовка Армокот 01 серый","кг",9,9,null,null,9,"00-00351025","Будённый С.М.",186.88399999999999,{"$f":"K16*E16","v":1681.9559999999999}]
[{"$f":"1+A16","v":2},"Кислород М3","м3",7.8399900000000002,7.8399900000000002,null,null,7.8399900000000002,"K3-00000415","Тимошенко С.К.",125.00104722569,{"$f":"K17*E17","v":980.00696023893738}]
[{"$f":"1+A17","v":3},"Круг шлифовальный 150х6,0 мм","шт",1,1,null,null,1,"C1-00003729","Будённый С.М.",86.854545454545502,86.854545454545502]
[4,"Песок","м3",0.64200000000000002,0.64200000000000002,null,null,0.64200000000000002,"С1-00003404","Жуков Г.К.",1050.0031611557199,674.10202946197217]
[5,"Покрытие Армокот V500 RAL 7004","кг",22,22,null,null,22,"00-00350672","Рокоссовский К.К.",297.04155049415999,6534.9141108715194]
[6,"Пропан газ","кг",3,3,null,null,3,"K3-00005277","Сергеев И.Д.",117.173602085345,351.52080625603497]
[7,"Растворитель Р-4","кг",15,15,null,null,15,"00-01883622","Тимошенко С.К.",59.32,889.8]
[8,"Свая СМ325-9.5","шт",1,1,null,null,1,"00-02061645","Рокоссовский К.К.",56958.15,56958.15]
[9,"Труба 219х8 09Г2С-4","т",3.0000000000000001E-3,3.0000000000000001E-3,null,null,3.0000000000000001E-3,"00-01866307","Тимошенко С.К.",73091.590872825895,219.2747726184777]
[10,"Цемент ЦЕМ I 42.5 Н","т",0.83,0.83,null,null,0.83,"С7-00006219","Баграмян И.Х.",5369.9952272365699,4457.0960386063525]
[11,"Электроды УОНИИ 13/55Р д.3мм","кг",4,4,null,null,4,"K3-00003183","Будённый С.М.",84.12,336.48]
[12,"Электроды УОНИИ 13/55Р д.4мм","кг",6,6,null,null,6,"K3-00003184","Тухачевский М.Н.",82.6666666666667,496.00000000000023]
["Составил:"]
["Материально-ответственное лицо",null,null,null,null,null,null,null,"Баграмян И.Х."]
["Материально-ответственное лицо",null,null,null,null,null,null,null,"Будённый С.М."]
["Материально-ответственное лицо",null,null,null,null,null,null,null,"Жуков Г.К."]
["Материально-ответственное лицо",null,null,null,null,null,null,null,"Рокоссовский К.К."]
["Материально-ответственное лицо",null,null,null,null,null,null,null,"Сергеев И.Д."]
["Материально-ответственное лицо",null,null,null,null,null,null,null,"Тимошенко С.К."]
["Материально-ответственное лицо",null,null,null,null,null,null,null,"Тухачевский М.Н."]
["Проверил:"]
["Главный специалист группы списания материалов",null,null,null,null,null,null,null,"Чиж П.П."]
["Заместитель генерального директора по производству",null,null,null,null,null,null,null,"Пыж Ч.Ч."]
[]
[]
[]
[]
[]
[]
[8,"Раствор цементно-песчаный М150","м3",0.56599999999999995,8216.18,4650.3599999999997,"3-99-27-17РИ(8)",null,null,null,null,{"$f":"K45*E45","v":0}]
[null,"ИЗГОТОВЛЕНИЕ СВАЙ С НАКОНЕЧНИКОМ",null,null,null,null,null,null,null,null,null,0]
[9,"Изготовление металлических свай для объектов Якутского и Иркутского центров газодобычи, диаметром, мм: 325, длина до 11 м","1 свая",7,6002.5,42017.5,"3-99-27-17РИ(9)",null,null,null,null,0]
["3.1.1","Кислород технический газообразный","м3",7.8399900000000002,197.11,1545.34]
["3.1.2","Электроды диаметром 3 мм марки УОНИ-13/55 типа Э-50А","т",9.7999999999999997E-3,60115.94,589.14]
["3.1.3","Пропан-бутан, смесь техническая","кг",2.94,122.57,360.36]
["3.1.4","Круг шлифовальный, тип А24 РБФ размером 115х6х22","шт",0.49,29.28,14.35]
[10,"Сваи из трубы 325Х8 мм ТУ 1380-123-05757848-2014 из стали марки С345 с дополнительными требованиями по ударной вязкости не менее 4 кгс.м/см2 при температуре минус 40 градусов по ГОСТ 19281-2014","т",1.4,49833.95,{"$f":"E52*D52","v":69767.529999999984},"3-99-27-17РИ(10)",null,null,null,null,{"$f":"K52*E52","v":0}]
[null,"ИЗГОТОВЛЕНИЕ СВАЙ С ОТКРЫТЫМ КОНЦОМ (С АНКЕРНЫМИ ЭЛЕМЕНТАМИ)",null,null,null,null,null,null,null,null,null,0]
[16,"Заполнение внутренних полостей труб свай цементно-песчаным раствором М150 Пк4 ГОСТ 28013-98 (часть над поверхностью земли)","1 м3 бетона полости  сваи",0.26400000000000001,12959.95,3421.43,"3-99-27-17РИ(16)"]
["3.1.1","Трубы бесшовные обсадные из стали группы Д и Б с короткой треугольной резьбой, наружным диаметром 219 мм, толщина стенки 8,9 мм","т",3.1800000000000001E-3,68773.460000000006,218.56]
[17,"Раствор цементно-песчаный М150","м3",0.26400000000000001,8216.18,2169.0700000000002,"3-99-27-17РИ(17)"]
[null,"Раздел 6.АНТИКОРРОЗИОННОЕ ПОКРЫТИЕ МЕТАЛЛОКОНСТРУКЦИЙ"]
[null,"ПОДГОТОВКА ПОВЕРХНОСТИ СТАЛЬНЫХ СВАЙ"]
[80,"Обезжиривание (удаление масляных и жировых загрязнений)","100 м2 обезжириваемой  поверхности",0.46739999999999998,9506.66,4443.41,"3-99-27-17РИ(80)"]
["3.1.1","Растворитель № 646","т",1.542E-2,48317.65,745.26]
["3.1.2","Ветошь","кг",2.3370000000000002,50.96,119.09]
[83,"Обеспыливание поверхности до балла не более 2 по стандарту ИСО 8502-3","1 м2 обеспыливаемой  поверхности",46.74,77.540000000000006,3624.22,"3-99-27-17РИ(83)"]
[null,"ОКРАСКА ПОВЕРХНОСТИ СТАЛЬНЫХ СВАЙ"]
[84,"Огрунтовка металлических поверхностей грунтовкой \"Армокот 01\" в 1 слой общей толщ. 50мкм","100 м2 окрашиваемой  поверхности",0.46739999999999998,5004.12,2338.9299999999998,"3-99-27-17РИ(84)",null,null,null,null,{"$f":"K64*E64","v":0}]
[85,"Грунтовка \"Армокот 01\" ТУ 2312-009-23354769-2008","т",8.5000000000000006E-3,171399.99,1456.9,"3-99-27-17РИ(85)",null,null,null,null,0]
[87,"Окраска металлических огрунтованных поверхностей лакокрасочным материалом \"Армокот V500\" в два слоя, общей толщ. 130мкм","100 м2 окрашиваемой  поверхности",0.46739999999999998,4319.75,2019.05,"3-99-27-17РИ(87)",null,null,null,null,0]
[88,"Покрытие \"Армокот V500\" ТУ 2312-009-23354769-2008","т",2.2100000000000002E-2,294381.93,6505.84,"3-99-27-17РИ(88)",null,null,null,null,0]
[null,"Итого",null,null,null,304539.03000000003,null,null,null,null,null,0]
[null,"Итого по главе 3",null,null,null,304539.03000000003,null,null,null,null,null,0]
[null,"Итого по главам 1-7",null,null,null,304539.03000000003,null,null,null,null,null,0]